Cogmind - Beta 16 *** ADVENTURER MODE // 2025.10.25 @ 21:06:52 Player: Lava Result: Destroyed by D-53 Grenadier with Mini Grenade Launcher Performance ------------- Evolutions (0) 0 Regions Visited (2) 400 Robots Destroyed (12) 60 Value Destroyed (273) 273 Prototype IDs (0) 0 Alien Tech Used (0) 0 Bonus (0) 0 TOTAL SCORE: 733 Bonus ------- None Cogmind --------- Core Integrity 0/250 Matter 238/300 Energy 100/100 System Corruption 0% Temperature Cool (0) Movement Core (350) Ox6 Location -10/Mines Parts ------- > --- POWER (1) -------- (None) > --- PROPULSION (2) --- (None) > --- UTILITY (2) ------ Large Storage Unit > --- WEAPON (2) ------- Light Assault Rifle > --- INVENTORY (15) --- Ion Engine Scrap Suit Signal Interpreter Terrain Scanner Terrain Scan Processor Seismic Detector ECM Suite Light Armor Plating Light Assault Rifle Light Cannon Grenade Launcher Mining Laser Peak State ------------ > --- POWER ------------ Ion Engine > --- PROPULSION ------- Light Treads Advanced Treads > --- UTILITY ---------- Large Storage Unit Improved Sensor Array > --- WEAPON ----------- Assault Rifle Assault Rifle > --- INVENTORY -------- Light Treads Scrap Suit Sensor Array Signal Interpreter Terrain Scanner Terrain Scan Processor Seismic Detector ECM Suite Light Armor Plating Light Assault Rifle Light Assault Rifle Light Cannon Grenade Launcher Mining Laser [Rating: 13] Favorites ----------- Power Ion Engine Engine Ion Engine Power Core Light Nuclear Core Propulsion Light Treads Treads Light Treads Utility Large Storage Unit Device Sensor Array Storage Large Storage Unit Weapon Assault Rifle Ballistic Gun Assault Rifle Ballistic Cannon Light Cannon Launcher Grenade Launcher Special Weapon Mining Laser Build | -11 -10 -10 ------- Run | Yrd Mat Min Slots Evolved . | . . . Power . | . . . Propulsion . | . . . Utility . | . . . Weapon . | . . . Parts Attached 16 | 5 5 6 Power 2 | 1 . 1 Engine 1 | 1 . . Core 1 | . . 1 Reactor . | . . . Propulsion 3 | 2 . 1 Treads 3 | 2 . 1 Leg . | . . . Wheel . | . . . Hover . | . . . Flight . | . . . Utility 5 | 1 2 2 Device 3 | . 1 2 Storage 2 | 1 1 . Processor . | . . . Hackware . | . . . Protection . | . . . Artifact . | . . . Weapon 6 | 1 3 2 Energy Gun . | . . . Energy Cannon . | . . . Ballistic Gun 3 | 1 1 1 Ballistic Cannon 1 | . 1 . Launcher 1 | . . 1 Special Weapon 1 | . 1 . Impact Weapon . | . . . Slashing Weapon . | . . . Piercing Weapon . | . . . Special Melee Weapon . | . . . Unidentified Prototypes . | . . . Parts Lost 8 | . . 8 Power 1 | . . 1 Propulsion 3 | . . 3 Utility 2 | . . 2 Weapon 2 | . . 2 Highest Loss Streak 7 | . . 7 To Critical Strikes . | . . . Average Backups 8 | 1 6 13 Power . | . . . Propulsion 1 | . 1 1 Utility 3 | . 2 7 Weapon 2 | . 2 4 Tool/Special . | . . . Unused Backups 10 | . . 10 Power . | . . . Propulsion 2 | . . 2 Utility 7 | . . 7 Weapon 1 | . . 1 Tool/Special . | . . . Average Slot Usage (%) 95 | . 94 99 Engine 13 | . 14 11 Treads 27 | . 28 27 Device 12 | . 12 13 Storage 14 | . 14 14 Ballistic Gun 18 | . 15 27 Ballistic Cannon 6 | . 9 . Peak Build Rating 13 | 5 8 13 Average Rating 8 | 3 7 11 On Entrance 4 | . 5 8 Avg Prop Armor Cover (%) . | . . . Naked Turns . | . . . Heaviest Build 31 | 12 31 31 Greatest Support 42 | 40 40 42 Greatest Overweight (x) 1 | . . 1 Average Overweight (x) . | . . . Largest Inventory Capacity 15 | 8 15 15 Average Capacity 14 | 6 14 15 Most Carried 15 | 4 14 15 Average Carried 8 | 1 6 14 Final Capacity 15 | 8 15 15 Final Carried 14 | . 14 13 Class Distribution -------------------- 100% | Mutant Dominant Class ---------------- Mutant | -10/Materials Mutant | -10/Mines Resources | -11 -10 -10 ----------- Run | Yrd Mat Min Matter Collected 603 | 242 142 219 Remotely . | . . . Salvage Created 318 | . 82 236 Parts 23 | . 11 12 Haulers Intercepted . | . . . Recyclers Shooed . | . . . Parts Field Recycled . | . . . Retrieved Matter . | . . . Parts Self-Destructed . | . . . Prevented . | . . . Parts Restored . | . . . Kills | -11 -10 -10 ------- Run | Yrd Mat Min Combat Hostiles Destroyed 23 | . 6 17 Guns 8 | . 3 5 Cannons 3 | . 3 . AOE 12 | . . 12 Classes Destroyed 5 | . 2 3 Watcher 2 | . 2 . Swarmer 6 | . 6 . Grunt 2 | . . 2 Sentry 2 | . . 2 Assembled 13 | . . 13 Best Kill Streak 13 | . 3 13 Combat Bots Only 13 | . 3 13 Max Kills in Single Turn 3 | . 1 3 Gunslinging . | . . . Exploded 3 | . . 3 Melee . | . . . Uniques/NPCs Destroyed . | . . . Combat | -11 -10 -10 -------- Run | Yrd Mat Min Hostile Shots Fired 115 | . 20 95 Missed 30 | . 6 24 Hits 85 | . 14 71 Melee 3 | . . 3 Projectile 82 | . 14 68 AOE 8 | . . 8 Damage Taken 1125 | . 90 1035 Core 258 | . 13 245 Absorbed by Shields . | . . . Ignored by Resistances 318 | . 28 290 Core Remaining (%) 100 | 100 . . Volleys Fired 49 | . 21 28 Largest 2 | . 2 2 Hottest 100 | . 100 50 Shots Fired 86 | . 32 54 Gun 65 | . 20 45 Cannon 11 | . 11 . Launcher 9 | . . 9 Special 1 | . 1 . Kinetic 76 | . 31 45 Thermal 1 | . 1 . Explosive 9 | . . 9 Electromagnetic . | . . . Robot Hit Streak 24 | . 9 24 Robot Miss Streak 3 | . 3 2 Penetration Max . | . . . Secondary Targets 1 | . . 1 Max Gunslinging Chain 1 | . . 1 Shots Hit Robots 63 | . 21 42 Core Hits 43 | . 7 36 Critical Kills . | . . . Critical Parts Destroyed 2 | . 1 1 Critical Strikes 3 | . 2 1 Destroy 2 | . 1 1 Blast 1 | . 1 . Melee Attacks . | . . . Impact . | . . . Slashing . | . . . Piercing . | . . . Sneak Attacks . | . . . Combat Hostiles . | . . . Follow-up Attacks . | . . . Damage Inflicted 1582 | . 304 1278 Guns 631 | . 148 483 Cannons 156 | . 156 . Explosions 795 | . . 795 Melee . | . . . Ramming . | . . . Kinetic 787 | . 304 483 Thermal . | . . . Explosive 795 | . . 795 Electromagnetic . | . . . Impact . | . . . Slashing . | . . . Piercing . | . . . Highest Corruption . | . . . Average Corruption . | . . . Corruption Purged . | . . . Corruption Blocked . | . . . Overload Shots . | . . . Overflow Damage 58 | . 13 45 Projectiles 13 | . 13 . Explosions 45 | . . 45 Melee . | . . . Knockbacks . | . . . Impact . | . . . Kinetic . | . . . Secondary . | . . . Self-Inflicted Damage 49 | . . 49 Shots 3 | . . 3 Rammed . | . . . Targets Rammed . | . . . Kicked . | . . . Crushed . | . . . Highest Temperature 20 | . 20 18 Average Temperature 5 | . 10 4 Received Heat Transfer 231 | . . 231 Siege Activations . | . . . Martial Activations . | . . . Shielding Activations . | . . . Robots Disrupted . | . . . Combat Hostiles . | . . . Robots Corrupted . | . . . Combat Hostiles . | . . . Parts Fried . | . . . Impact Corruptions . | . . . Robots Melted . | . . . Combat Hostiles . | . . . Parts Melted . | . . . Heat Transferred . | . . . Parts Sabotaged . | . . . Parts Stolen . | . . . Parts Stripped . | . . . Power Chain Reactions . | . . . Alert | -11 -10 -10 ------- Run | Yrd Mat Min Maximum Alert Level . | . . . Low Security (%) 100 | 100 100 100 Level 1 . | . . . Level 2 . | . . . Level 3 . | . . . Level 4 . | . . . Level 5 . | . . . High Security . | . . . Max Security . | . . . Peak Influence 75 | . 75 50 Initial . | . . . Average 8 | . 9 7 Influence Increases 325 | . 197 128 Destroy 0b10 Robot/C 200 | . 120 80 Destroy 0b10 Robot/NC 10 | . 10 . Destroy Leader 34 | . 24 10 Successful Hack 19 | . 19 . Disable Machine 9 | . 9 . Destroy Structure 38 | . . 38 Lose Combat Pursuer 15 | . 15 . Influence Decreases 325 | . 197 128 Time Decay 277 | . 197 80 Lost Part 48 | . . 48 Squads Dispatched 1 | . . 1 Investigation 1 | . . 1 Extermination . | . . . Reinforcement . | . . . Assault . | . . . Garrison . | . . . Intercept . | . . . Searches Triggered . | . . . Construction Impeded . | . . . Haulers Reinforced . | . . . Active Scanning Responses . | . . . Cargo Convoy Interrupts . | . . . Stealth | -11 -10 -10 --------- Run | Yrd Mat Min Distress Signals . | . . . Communications Jammed . | . . . Distress Signals . | . . . Times Spotted 33 | . 10 23 Peak Tracking Total 8 | . 4 8 Tactical Retreats 2 | . 2 . Traps | -11 -10 -10 ------- Run | Yrd Mat Min Traps Triggered . | . . . Indirectly . | . . . Trap Hack Attempts . | . . . Triggered . | . . . Disarmed 4 | . 4 . Reprogrammed . | . . . Reused . | . . . Traps Extracted . | . . . Installed . | . . . Triggered . | . . . Machines | -11 -10 -10 ---------- Run | Yrd Mat Min Machines Disabled 1 | . 1 . Max in Single Turn 1 | . 1 . Machines Repaired . | . . . Machines Dismantled . | . . . Machines Sabotaged . | . . . Overloaded Fab Kills . | . . . Hacking | -11 -10 -10 --------- Run | Yrd Mat Min Machines Accessed 9 | . 8 1 Terminals 6 | . 6 . Fabricators . | . . . Repair Stations . | . . . Recycling Units 2 | . 2 . Scanalyzers . | . . . Garrison Access . | . . . Total Hacks 21 | . 20 1 Successful 13 | . 12 1 Failed 8 | . 8 . Catastrophic 3 | . 3 . Database Lockouts . | . . . Manual 16 | . 16 . Terminals 18 | . 18 . Fabricators . | . . . Repair Stations . | . . . Recycling Units 2 | . 2 . Scanalyzers . | . . . Garrison Access . | . . . Terminal Hacks 6 | . 5 1 Open Door 1 | . . 1 Level Access Points 1 | . 1 . Branch Access Points 1 | . 1 . Alert Level 1 | . 1 . Locate Traps 1 | . 1 . Disarm Traps 1 | . 1 . Fabricator Hacks . | . . . Repair Station Hacks . | . . . Recycling Unit Hacks . | . . . Scanalyzer . | . . . Garrison Access Hacks . | . . . Unauthorized Hacks 7 | . 7 . Terminals 6 | . 6 . Botnet 6 | . 6 . Fabricators . | . . . Repair Stations . | . . . Recycling Units 1 | . 1 . Monitor 1 | . 1 . Scanalyzers . | . . . Garrison Access . | . . . Data Cores Recovered . | . . . Used . | . . . Hacking Detections 7 | . 7 . Full Trace Events . | . . . Feedback Events . | . . . Feedback Blocked . | . . . Robot Schematics Acquired . | . . . Robots Built . | . . . Authchips . | . . . Time . | . . . Total Robot Build Rating . | . . . Part Schematics Acquired . | . . . Parts Built . | . . . Authchips . | . . . Time . | . . . Total Part Build Rating . | . . . Part Studies Acquired . | . . . Parts Repaired . | . . . Time . | . . . Parts Recycled . | . . . Recycled Matter . | . . . Retrieved Matter . | . . . Retrieved Components . | . . . Parts Scanalyzed . | . . . Part Schematics Acquired . | . . . Parts Damaged . | . . . Bothacking | -11 -10 -10 ------------ Run | Yrd Mat Min Used RIF Installer . | . . . Robots Hacked . | . . . Non-combat . | . . . Combat . | . . . Robot Hacks Applied . | . . . Relay Couplers Released . | . . . Fabnet Peak Effective % . | . . . Robots Rewired . | . . . Allies Hacked . | . . . Hacks Repelled . | . . . Allies | -11 -10 -10 -------- Run | Yrd Mat Min Total Allies . | . . . Largest Group . | . . . Highest-Rated Group . | . . . Highest-Rated Ally . | . . . Total Orders . | . . . Ally Attacks . | . . . Total Damage . | . . . Kills . | . . . Allies Corrupted . | . . . Allies Melted . | . . . Intel | -11 -10 -10 ------- Run | Yrd Mat Min Active Infowar (turns) 1589 | . 1146 443 Sensors 1589 | . 1146 443 Robot Analysis Total . | . . . Derelict Logs Recovered . | . . . Drone Launches . | . . . Drone Recoveries . | . . . Exploration | -11 -10 -10 ------------- Run | Yrd Mat Min Turns Passed 1816 | 71 1285 460 Spaces Moved 984 | 39 723 222 Core 1 | 1 . . Treads 983 | 38 723 222 Legs . | . . . Wheels . | . . . Hover . | . . . Flight . | . . . Fastest Speed 50 | 50 160 152 Average Speed 158 | 157 160 153 Slowest Speed 240 | 160 160 240 Overloaded Moves . | . . . Propulsion Burnouts . | . . . Robots Hopped . | . . . Potential Cave-ins . | . . . Cave-ins Triggered . | . . . Exploration Rate (%) 45 | 3 95 38 Regions Visited 2 Branch Regions 1 Pre-discovered Areas . | . . . Known Exits Taken 1 | . 1 . Unknown Exits Taken 1 | 1 . . Scrap Searched . | . . . Spaces Dug . | . . . Terrain Destroyed 49 | . . 49 Melee . | . . . Projectile . | . . . AOE 49 | . . 49 Terrain Rammed . | . . . Walls Destroyed . | . . . Machines Disabled . | . . . Actions | -11 -10 -10 --------- Run | Yrd Mat Min Total 1153 | 49 817 287 Wait 75 | 1 51 23 Move 982 | 38 722 222 Hop . | . . . Pick Up 25 | 5 17 3 Fast Attach . | . . . Attach 11 | 5 3 3 Detach . | . . . Swap 7 | . 2 5 Drop 4 | . 1 3 Fire 49 | . 21 28 Melee . | . . . Ram . | . . . Kick . | . . . Crush . | . . . Escape Stasis . | . . . Rewire . | . . . Trap . | . . . Miscellaneous . | . . . Route ------- -11/Scrapyard -10/Materials (discovered 4 exits: *Mat x3 / *Min) -10/Mines (discovered 1 exit: *Mat) History --------- Turn | Location | Event 17 | -11/Scrapyard | Discovered new exit (range 15) 72 | -11/Scrapyard | Entered Materials 261 | -10/Materials | Identified exit to Mines 284 | -10/Materials | Discovered new exit (range 6) 308 | -10/Materials | Build established: Mutant 493 | -10/Materials | Identified exit to Materials 572 | -10/Materials | Derelicts attacked the area 1357 | -10/Materials | Entered Mines 1357 | -10/Mines | Discovered exit to Materials (range 10) 1396 | -10/Mines | Met a Derelict shopkeep closing up shop 1398 | -10/Mines | Met a Derelict bent on vengeance 1440 | -10/Mines | Found a Scrap Suit stashed away for nefarious purposes 1444 | -10/Mines | Found Scrap Suit 1727 | -10/Mines | Assembled infested the area 1776 | -10/Mines | Core integrity fell below 50% 1811 | -10/Mines | Destroyed 13 combat bots 1814 | -10/Mines | Core integrity fell below 20% 1817 | -10/Mines | Destroyed by D-53 Grenadier with Mini Grenade Launcher Last Messages --------------- 01784_ as-77718 destroyed. 01784_ as-67680 destroyed. 01787_ Destroyed Asb. Hover Unit. 01790_ Assault Rifle destroyed. 01790_ as-65950 destroyed. 01790_ as-17104 destroyed. 01791_ The unstable cave ceiling collapses. 01806_ Acquired 13 matter. 01807_ Acquired 36 matter. 01808_ Adv. Treads destroyed. 01808_ U-05 Engineer destroyed. 01811_ Acquired 19 matter. 01813_ Lgt. Nuclear Core destroyed. 01815_ Sensor Array destroyed. 01815_ Assault Rifle destroyed. 01816_ The unstable cave ceiling collapses. 01816_ D-53 Grenadier suffers critical hit (Destroy). 01816_ Destroyed Cmb. Airjet. 01817_ The unstable cave ceiling collapses. 01817_ Lgt. Treads destroyed. Map ----- +----------------------------------------------------+ | ???????# ##??# #????????????????? | | ???????# ##?# #######??????????? | | ????????# ### #???????? | | ?????????# ## #######??????????? | | ??????????# #????????????????? | | ?????????## ##???????????????? | | ???????### ###?????????????? | | ???###?# #?????????????? | | ??##]!## #?????????????? | | ??#"!!*#[ #?????????????? | | ??# +! ## #?????????????? | | ??# [[+= #### #?????????????? | | ??#"]!=#% #??#r #?????????????? | | ??##!|## ##??# ##?????????????? | | ???###?### ##?## ##??????????????? | | ?????????## ### #???????????????? | | ?????????## ##??????????????? | | ????????## dd ######?????????? | | ????????# ???????? | | ????????# $ ??????? | | ????????# ###### ??????? | | ???????## #??????????????? | | ???????# ##?????????????? | | ????????# r##????????????? | | ?????????# #????????????? | | ?????????# @ # #????????????? | | ?????????# ## ???????????? | | ?????????# #?# ??????????? | | ?????????## ##??# #??????????? | | ??????????## ##????# #???????????? | | ?????????#?## ###??????#?????????????? | | ??????#### # #?????????????????????? | | ??????# #?????????????????????? | | ??????# ##?????????????????????? | | ?????# #?????? ??????????????? | | ????# ##????"" "?????????????? | | ????## #??? """ """ ""????????? | | ????# # ??????????? | | ???## """ "?????????????? | | ???# ##### """ "?????????????? | | ???# ??????? """ ??????????????? | | ???## ????????? ?????????????? | | ???? ??????????? ""????????????? | | ???# ?????????????"????????????? | | ???? " ##??????????????????????????? | | ?????? ###????????????????????????????? | | ??????????????????????????????????????? | | ??????????????????????????????????????? | | ??????????????????????????????????????? | | ??????????????????????????????????????? | +----------------------------------------------------+ Best States ------------- Heat Dissipation 25 Energy Generation 14 Energy Capacity 250 Matter Stores 300 Matter Capacity 300 Sight Range 16 Robot Scan Range 15 Terrain Scan Density 10 Resistance: KI 20 Resistance: TH 20 Resistance: EX 20 Resistance: EM 20 Resistance: I 20 Resistance: S 20 Resistance: P 20 Evasion (%) 40 Recoil Reduction 2 Offensive Hacking 10 Item Schematics ----------------- None Robot Schematics ------------------ None Fabricated ------------ Nothing Repaired ---------- Nothing Studied --------- None Alien Tech Used ----------------- None Achievements -------------- DATA ERROR: Steam Global Achievement% Challenges ------------ None Game ------ Seed InsulatedSpacefoldGriptreads Manual? 0 Play Time 00:12:38 Cumulative 127.5 hours Start 2025.10.25 @ 20:54:42 End 2025.10.25 @ 21:06:52 Sessions 1 Manual Loads 0 Difficulty Adventurer Special Mode None Game No. 97 Rogue 70 Adventurer 27 Explorer 0 Win Type - Total 5 Types 2/0/2/1/0/0/0/0/0/0 Lore% 58 Gallery% 43 Achievement% 29 Wizard Run 0 Options --------- Layout 0 ASCII 0 Keyboard 0 Movement Mouse Keybinds 0 Fullscreen 1 Font 24/Smallcaps Map View 76x56 Zoom Use 6% Tactical HUD 1 Map Filters NONE Filters NONE Steam 1 RUN: ef17593f-d4cc-4db0-b01a-a2b6ca6c7e70